[Event "55th Iranian-ch Men Final 2022"]
[Site "Iran"]
[Date "2022.06.19"]
[Round "6.2"]
[White "Darini, Pouria"]
[Black "Mousavi, Seyed Khalil"]
[Result "0-1"]
[ECO "B07"]
[WhiteElo "2431"]
[BlackElo "2524"]
[Annotator "TA"]
[PlyCount "68"]
[EventDate "2022.06.15"]
[EventType "tourn"]
[EventCountry "IRI"]
[SourceTitle "playchess.com"]
[Source "ChessBase"]
[SourceQuality "1"]
[TimeControl "40/5400+30:1800+30"]

{[%evp 10,68,42,31,46,49,70,39,53,-11,-8,0,0,-5,31,5,6,34,36,8,0,0,0,0,-20,-25,-34,-31,167,143,205,-95,-114,-105,-93,-104,-103,-103,-103,-131,-117,-133,-75,-80,-124,-86,-86,-207,-172,-316,-320,-302,-287,-323,-334,-660,-620,-3299,-2824,-1333,-1166]} 1. e4 {[%emt 0:06:45]} d6 {[%emt 0:00:08]} 2. d4 {[%emt 0:00:16]} Nf6 {[%emt 0:00:07]} 3. Nc3 {[%emt 0:01:15]} g6 {[%emt 0:00:05]} 4. Be3 {[%emt 0:02:11]} c6 {[%emt 0:00:48]} 5. h3 {[%emt 0:13:19]} Nbd7 {[%emt 0:04:47]} 6. f4 {[%emt 0:07:52]} b5 {[%emt 0:04:03] B07: Pirc Defence: Miscellaneous Systems.} 7. a3 {[%emt 0:00:43]} Nb6 {[%emt 0:13:13]} 8. Nf3 {[%emt 0:00:58]} d5 {[%emt 0:08:33] [#] White is slightly better.} 9. Ne5 $146 {[%emt 0:18:34]} (9. e5 $14) ({Predecessor:} 9. e5 Nh5 10. Kf2 Ng7 11. g4 h5 12. Rg1 Bd7 13. Be2 Qc8 14. Ne1 Nc4 15. Bc1 hxg4 16. hxg4 {1-0 (31) Fressinet,L (2702)-Onischuk,V (2612) Bastia 2015}) 9... Nxe4 $11 {[%emt 0:12:52]} 10. Nxe4 {[%emt 0:00:49]} (10. Nxc6 Nxc3 11. Qd3 (11. bxc3 Qc7 $17) 11... Qc7 12. Qxc3 a6 $17) 10... dxe4 {[%emt 0:00:04]} 11. Nxc6 {[%emt 0:00:13]} Qd6 {[%emt 0:00:37]} (11... Qd5 $5 {[%cal Rd5c6]} 12. Nb4 Qd7 $11) 12. Ne5 {[%emt 0:10:59]} a6 {[%emt 0:01:46]} 13. c4 {[%emt 0:02:53]} bxc4 {[%emt 0:04:51]} 14. Bxc4 {[%emt 0:11:32]} ({Reject} 14. Nxc4 Nxc4 15. Bxc4 Bg7 $15) 14... e6 {[%emt 0:09:08]} 15. Bb3 {[%emt 0:11:14][%cal Od4d5]} Be7 {[%emt 0:06:22]} 16. O-O {[%emt 0:01:21][%cal Of4f5] Threatens to win with f5!} O-O {[%emt 0:02:11]} 17. f5 {[%emt 0:01:24]} exf5 {[%emt 0:01:45]} 18. Bf4 {[%emt 0:01:31]} Qf6 {[%emt 0:07:35]} (18... Bf6 $15 {keeps the upper hand.} 19. Rc1 Qd8) 19. Rc1 $1 $18 {[%emt 0:01:48] Black must now prevent Rc6.} Bb7 {[%emt 0:02:28] [#] Prevents Rc6.} (19... Bd6 $16) 20. Rc7 $2 {[%emt 0:04:21]} (20. Nxf7 $1 $18 Rxf7 21. Be5) 20... Bd5 $17 {[%emt 0:00:22] ...Bd6 is the strong threat.} 21. Nd7 {[%emt 0:00:01]} Nxd7 {[%emt 0:03:57]} 22. Bxd5 {[%emt 0:00:01]} Rad8 {[%emt 0:00:25]} 23. Rc6 {[%emt 0:00:22] Inhibits Bd6.} Qh4 {[%emt 0:00:55] Hoping for ...Nb8.} 24. Rxa6 {[%emt 0:01:13]} Nf6 $36 {[%emt 0:01:10][%mdl 2048] Black has strong initiative.} 25. Bc4 {[%emt 0:00:25]} Bc5 {[%emt 0:14:48]} ({Black should play} 25... Nd5 26. Bxd5 Rxd5) 26. Be5 {[%emt 0:00:33]} Nd7 27. Bc7 {[%emt 0:01:27] [#]} Nb8 $1 {[%emt 0:01:00]} 28. Bxd8 {[%emt 0:00:00]} (28. Bxf7+ $17 Rxf7 29. Bxd8 Qxd8 30. dxc5 Qxd1 31. Rxg6+ hxg6 32. Rxd1) 28... Rxd8 $19 {[%emt 0:00:30][%cal Bf8d8,Bd8d4,Bd4a4][%mdl 32]} 29. Ra4 {[%emt 0:01:00]} (29. Ra5 $142 Rxd4 30. Bxf7+ (30. Rxc5 Rxd1 31. Rxd1 Kg7 $17) 30... Kg7 31. Qb3 Rd3+ 32. Rxc5 Rxb3 33. Bxb3) 29... Rxd4 {[%emt 0:00:00]} ({Worse is} 29... Bxd4+ 30. Kh1 Be5 31. Qb3 $15) 30. Bxf7+ {[%emt 0:00:30]} Kxf7 {[%emt 0:00:00][%cal Bg8f7,Bf7e7,Be7f6][%mdl 32]} 31. Qb3+ {[%emt 0:00:00]} Ke7 {[%emt 0:00:00] ( -> ...Rd3+)} 32. Kh1 $2 {[%emt 0:00:29]} (32. Rxd4 Bxd4+ 33. Kh1) 32... Rxa4 {[%emt 0:00:00] Black is clearly winning.} 33. Qxb8 {[%emt 0:00:22]} Bd6 {[%emt 0:00:00] Inhibits Qc7+.} 34. Qb7+ {[%emt 0:00:36]} Kf6 {[%emt 0:00:00] Never resign too early!  Weighted Error Value: White=0.70/Black=0.22 (precise)} 0-1

[Event "55th Iranian-ch Men Final 2022"]
[Site "Iran"]
[Date "2022.06.19"]
[Round "6.3"]
[White "Khamisi, S Jafar"]
[Black "Ghaem Maghami, Ehsan"]
[Result "0-1"]
[ECO "B90"]
[WhiteElo "2118"]
[BlackElo "2519"]
[Annotator "TA"]
[PlyCount "102"]
[EventDate "2022.06.15"]
[EventType "tourn"]
[EventCountry "IRI"]
[SourceTitle "playchess.com"]
[Source "ChessBase"]
[SourceQuality "1"]
[TimeControl "40/5400+30:1800+30"]

{[%evp 19,102,8,46,27,19,0,0,0,0,0,0,0,0,0,-10,-19,0,-47,-53,-28,-30,-50,-22,-75,-72,-88,-85,-101,-75,-85,-101,-79,-90,-111,-99,-100,0,0,0,-5,0,0,-14,-14,0,-20,0,0,0,0,0,0,0,-15,-2,-8,0,-24,0,-87,-72,-34,0,0,0,0,0,-263,-259,-272,-264,-325,-219,-325,-314,-159,-188,-12845,-12840,-29966,-29968,-29965,-11076,-975,-853]} 1. e4 {[%emt 1:31:00]} c5 {[%emt 0:17:27]} 2. Nf3 {[%emt 0:00:00]} d6 {[%emt 0:00:08]} 3. d4 {[%emt 0:00:00]} cxd4 {[%emt 0:00:06]} 4. Nxd4 {[%emt 0:00:00]} Nf6 {[%emt 0:00:05]} 5. Nc3 {[%emt 0:00:00]} a6 {[%emt 0:01:13]} 6. Be3 {[%emt 0:00:00]} e5 {[%emt 0:02:24]} 7. Nb3 {[%emt 0:00:00]} Be6 {[%emt 0:03:17]} 8. Qd2 {[%emt 0:00:00]} Nbd7 {[%emt 0:00:28]} 9. f3 {[%emt 0:00:00]} Be7 {[%emt 0:04:40]} 10. g4 {[%emt 0:00:00]} b5 {[%emt 0:10:56]} 11. g5 {[%emt 0:00:00] B90: Sicilian Najdorf: Unusual White 6th moves, 6 Be3 Ng4 and 6 Be3 e5.} b4 {[%emt 0:00:35]} 12. Nd5 {[%emt 0:00:00]} Nxd5 {[%emt 0:00:36]} 13. exd5 {[%emt 0:00:00] The position is equal.} Bf5 {[%emt 0:00:11]} 14. h4 $1 {[%emt 0:00:00]} a5 {[%emt 0:11:16][%cal Oh7h6]} 15. Bd3 {[%emt 0:00:00]} Bxd3 {[%emt 0:00:56]} 16. Qxd3 {[%emt 0:00:00]} O-O {[%emt 0:00:21]} 17. O-O-O {[%emt 0:00:00]} f5 {[%emt 0:01:38] was the old line (17...a4).} 18. gxf6 {[%emt 0:00:00]} (18. Nd2 $11) 18... Nxf6 $15 {[%emt 0:00:34][%cal Bd7f6,Bf6h5,Bh5f4][%mdl 32]} 19. Nd2 {[%emt 0:00:00]} Nh5 {[%emt 0:01:36] [#]} 20. Kb1 $146 {[%emt 0:00:00]} ({Predecessor:} 20. Rhg1 Nf4 21. Bxf4 Rxf4 22. h5 Bg5 23. Kb1 Rd4 24. Qe2 Bxd2 25. Rxd2 Rh4 26. Qg2 Qf6 27. Qg5 Qxg5 28. Rxg5 Rh1+ {0-1 (28) Bieszk,S (848)-Velasco,J (800) LSS email 2015}) 20... Qd7 {[%emt 0:07:39]} 21. Bg5 {[%emt 0:00:00]} (21. Rdg1 $11) 21... Nf4 $17 {[%emt 0:02:59]} 22. Qe3 {[%emt 0:00:00]} h6 {[%emt 0:09:24]} (22... Bxg5 23. hxg5 Qc7 24. Rh2 $14 (24. Qe4 g6 $11)) 23. Bxe7 {[%emt 0:00:00]} Qxe7 {[%emt 0:00:08]} 24. Ne4 {[%emt 0:00:00]} Rab8 {[%emt 0:00:17]} 25. Rd2 {[%emt 0:00:00]} a4 $1 {[%emt 0:03:12]} 26. c4 {[%emt 0:00:00]} bxc3 $1 {[%emt 0:04:54]} 27. Qxc3 {[%emt 0:00:00] [#]} Rb6 {[%emt 0:02:55]} (27... Ng6 $1 $17 28. h5 Nh4) 28. Qa5 $11 {[%emt 0:00:37]} Qb7 {[%emt 0:02:33]} 29. Qxa4 {[%emt 0:04:09]} Ra8 {[%emt 0:03:08]} ({Don't take} 29... Nxd5 30. Qc4 Kh8 31. Qxd5 $16) 30. Qc4 {[%emt 0:03:20]} Rc8 {[%emt 0:01:30]} 31. Qa4 {[%emt 0:02:51]} Ra8 {[%emt 0:05:22][%mdl 1024] Black has compensation.} 32. Qc4 {[%emt 0:00:37]} Rba6 {[%emt 0:02:04]} 33. b3 $1 {[%emt 0:02:31]} Rc8 $36 {[%emt 0:00:33][%mdl 2048] Black is more active.} 34. Qf1 {[%emt 0:00:15]} Rb6 {[%emt 0:00:27]} 35. Qd1 {[%emt 0:00:27]} Ra8 {[%emt 0:00:34]} 36. Rhh2 {[%emt 0:00:43]} Ra5 {[%emt 0:00:25]} 37. Nc3 {[%emt 0:01:25]} Rb4 {[%emt 0:01:00]} 38. Kb2 {[%emt 0:00:31]} Qa7 {[%emt 0:01:03]} 39. a4 {[%emt 0:00:45]} (39. Rh1 $11 {keeps the balance.}) 39... Qe3 {[%emt 0:00:35] Black is much more active.} 40. Rh1 {[%emt 0:00:00]} Rd4 {[%emt 0:00:00]} 41. Rxd4 {[%emt 0:07:53]} exd4 {[%emt 0:01:41]} 42. Ne4 {[%emt 0:04:46]} Rxd5 {[%emt 0:01:56]} ({But not} 42... Nxd5 43. Re1 Nc3 44. Qd2 Qxd2+ 45. Nxd2 $16) 43. Rg1 $2 {[%emt 0:11:23][%mdl 8192]} (43. Ka3 $11 Ne2 44. Qc2) 43... Re5 $19 {[%emt 0:05:37] Strongly threatening ...d5.} 44. Ka3 {[%emt 0:06:35] Threatens to win with Nf6+.} Ne2 {[%emt 0:05:18]} 45. Nf6+ {[%emt 0:01:24] [#]} Kf7 $1 {[%emt 0:03:23]} 46. Ng4 {[%emt 0:00:19]} Qxg1 {[%emt 0:00:07]} 47. Nxe5+ {[%emt 0:00:22]} dxe5 {[%emt 0:00:11]} 48. Qxg1 {[%emt 0:02:00]} (48. Qxe2 Qa1+ 49. Qa2) 48... Nxg1 {[%emt 0:00:02]} 49. a5 {[%emt 0:00:15]} d3 {[%emt 0:04:48]} 50. Kb2 {[%emt 0:00:06]} Nxf3 {[%emt 0:00:42] ( -> ...Nd4)} 51. a6 {[%emt 0:00:20]} Nd4 {[%emt 0:01:45] Weighted Error Value: White=0.53/Black=0.08 (flawless)} 0-1

[Event "55th Iranian-ch Men Final 2022"]
[Site "Iran"]
[Date "2022.06.19"]
[Round "6.4"]
[White "Daneshvar, Bardiya"]
[Black "Ashraf, Artin"]
[Result "1/2-1/2"]
[ECO "B13"]
[WhiteElo "2486"]
[BlackElo "2096"]
[Annotator "TA"]
[PlyCount "94"]
[EventDate "2022.06.15"]
[EventType "tourn"]
[EventCountry "IRI"]
[SourceTitle "playchess.com"]
[Source "ChessBase"]
[SourceQuality "1"]
[TimeControl "40/5400+30:1800+30"]

{[%evp 13,94,20,14,11,7,0,0,0,0,0,17,-20,-17,-42,-33,-32,-31,-36,-34,-44,-49,-47,-67,-34,-10,-86,-37,-97,-43,-28,-25,-104,-88,-96,-91,-80,-11,-161,-164,-332,-235,-233,-219,-205,-131,-121,-128,-149,-118,-118,0,0,124,124,139,147,137,116,122,125,138,145,147,163,150,117,172,171,153,0,0,0,0,9,63,8,8,0,0,0,0,0,0]} 1. e4 {[%emt 0:00:06]} c6 {[%emt 0:06:48]} 2. d4 {[%emt 0:00:08]} d5 {[%emt 0:00:09]} 3. exd5 {[%emt 0:00:15]} cxd5 {[%emt 0:00:09]} 4. Bd3 {[%emt 0:00:07]} Nf6 {[%emt 0:01:29]} 5. c3 {[%emt 0:00:23]} Qc7 {[%emt 0:00:07]} 6. h3 {[%emt 0:01:43]} g6 {[%emt 0:11:03]} 7. Nf3 {[%emt 0:00:33]} Nc6 {[%emt 0:00:49]} 8. O-O {[%emt 0:00:10] B13: Caro-Kann: Exchange Variation and Panov-Botvinnik Attack.} Bf5 {[%emt 0:00:19]} 9. Bxf5 {[%emt 0:06:06]} gxf5 {[%emt 0:00:14]} 10. Na3 {[%emt 0:09:38]} a6 {[%emt 0:08:25]} 11. c4 {[%emt 0:09:02] [#]} Bg7 $146 {[%emt 0:13:42]} ({Predecessor:} 11... Rd8 12. Qd3 e6 13. Bg5 Bg7 14. c5 O-O 15. Nc2 Kh8 16. b4 Rg8 17. a4 h6 {½-½ (55) Dudek,R (2240)-Rosner,J (2424) Baden 2018}) 12. b3 {[%emt 0:16:53]} (12. Bg5 $5 {[%cal Rg5f6]}) 12... O-O {[%emt 0:02:27]} 13. Be3 {[%emt 0:02:45]} Rad8 {[%emt 0:04:05]} 14. Qc1 {[%emt 0:01:25]} Ne4 {[%emt 0:04:38]} 15. Nc2 {[%emt 0:04:56]} Qd6 {[%emt 0:05:47] Inhibits Bh6.} 16. c5 {[%emt 0:04:49]} Qg6 {[%emt 0:00:24]} 17. Bf4 {[%emt 0:08:04]} f6 {[%emt 0:05:58]} 18. Qd1 {[%emt 0:04:09]} Qh5 {[%emt 0:04:10] Against Nh4} 19. Nd2 {[%emt 0:04:29]} (19. b4 $11) 19... Qh4 {[%emt 0:04:09]} ({Black should play} 19... Qxd1 $17 20. Rfxd1 Nc3) 20. Nxe4 {[%emt 0:05:00]} ({White should try} 20. Bh2 $15) 20... fxe4 {[%emt 0:01:44]} (20... dxe4 $17 21. Qc1 Qh5) 21. Qd2 $15 {[%emt 0:01:45]} Qh5 {[%emt 0:04:02]} 22. Rad1 {[%emt 0:03:56]} (22. Be3 $11) 22... e5 $17 {[%emt 0:02:33]} 23. Bh2 {[%emt 0:01:30]} Bh6 {[%emt 0:03:04]} 24. Qc3 {[%emt 0:00:39]} Bf4 {[%emt 0:02:24]} (24... Kh8 $17) 25. Rfe1 {[%emt 0:02:30] [#]} (25. Bxf4 $11 {and White stays safe.} exf4 26. Qd2) 25... Kh8 $1 $19 {[%emt 0:02:30]} 26. dxe5 $2 {[%emt 0:03:38]} (26. Kh1) 26... Bxh2+ {[%emt 0:00:29]} ({Not} 26... Bxe5 27. Nd4 $17) ({Avoid the trap} 26... fxe5 $2 27. Rf1 $19 (27. Bxf4 $2 Rxf4 28. Ne3 d4 $19)) 27. Kxh2 {[%emt 0:00:10]} fxe5 {[%emt 0:00:08]} 28. Qd2 {[%emt 0:01:53]} Rg8 {[%emt 0:01:17]} 29. Qe2 {[%emt 0:01:53]} Qf7 {[%emt 0:01:06]} 30. Rf1 {[%emt 0:01:36]} Qe7 {[%emt 0:03:23]} 31. b4 {[%emt 0:01:31]} Nd4 {[%emt 0:00:30]} (31... Qg5 $17 {[%csl Gg8][%cal Rg5g2]} 32. Qg4 Qf6) 32. Nxd4 $11 {[%emt 0:00:59]} exd4 {[%emt 0:00:22] [#]} (32... Qg7 $1 $11 {keeps the balance.} 33. Qg4 Qf7) 33. Qb2 $1 $16 {[%emt 0:00:48]} Rg6 {[%emt 0:04:39]} 34. Qxd4+ {[%emt 0:00:13]} Qg7 {[%emt 0:00:09]} 35. Qxg7+ {[%emt 0:00:47]} Kxg7 {[%emt 0:00:01][%mdl 4096] Endgame KRR-KRR} 36. Rfe1 {[%emt 0:01:05] Threatens to win with Rxe4.} Re6 {[%emt 0:00:13]} 37. f3 {[%emt 0:01:01][%cal Bf2f3,Bf3f4][%mdl 32]} e3 {[%emt 0:00:11]} 38. Rd4 {[%emt 0:00:04]} Kf6 {[%emt 0:00:17][%cal Bg7f6,Bf6f5,Bf5f4,Bf4e5,Be5d4][%mdl 32]} 39. f4 {[%emt 0:00:17]} Re4 {[%emt 0:02:37]} (39... h5 $16 {keeps fighting.}) 40. Rxe4 $18 {[%emt 0:00:00]} dxe4 {[%emt 0:00:00]} 41. Rxe3 {[%emt 0:03:34] KR-KR} ({White has to play} 41. g4 $16) 41... Kf5 $11 {[%emt 0:00:11]} 42. Kg3 {[%emt 0:00:51]} Rg8+ {[%emt 0:00:08]} 43. Kf2 {[%emt 0:00:04] g3 is the strong threat.} Kxf4 {[%emt 0:00:12][%cal Og8g2] And now ...Rxg2+! would win.} 44. g3+ {[%emt 0:04:10]} (44. Re1 $14) 44... Ke5 {[%emt 0:00:06] The position is equal.} 45. Ke2 {[%emt 0:00:44]} h5 {[%emt 0:02:47]} 46. Ra3 {[%emt 0:05:04]} Kd4 {[%emt 0:00:50]} 47. Re3 {[%emt 0:01:27]} Rg7 {[%emt 0:00:44] Black escapes into a draw.  Weighted Error Value: White=0.28 (precise) /Black=0.21 (precise)} 1/2-1/2

[Event "55th Iranian-ch Men Final 2022"]
[Site "Iran"]
[Date "2022.06.19"]
[Round "6.5"]
[White "Daghli, Arash"]
[Black "Tahbaz, Arash"]
[Result "0-1"]
[ECO "D36"]
[WhiteElo "2441"]
[BlackElo "2451"]
[Annotator "TA"]
[PlyCount "86"]
[EventDate "2022.06.15"]
[EventType "tourn"]
[EventCountry "IRI"]
[SourceTitle "playchess.com"]
[Source "ChessBase"]
[SourceQuality "1"]
[TimeControl "40/5400+30:1800+30"]

{[%evp 16,86,21,20,22,25,31,25,30,23,29,29,30,28,42,37,25,35,38,-4,-9,-3,-10,-8,0,-17,-20,0,0,0,11,-30,-44,-37,-29,-29,-19,-70,-79,-87,-64,-131,-131,-180,-150,-140,-147,-150,-147,-145,-153,-143,-154,-157,-132,-206,-220,-317,-318,-325,-314,-378,-207,-279,-288,-288,-298,-382,-384,-320,-314,-543,-460]} 1. d4 {[%emt 0:00:15]} Nf6 {[%emt 0:03:44]} 2. c4 {[%emt 0:00:18]} e6 {[%emt 0:00:06]} 3. Nc3 {[%emt 0:00:25]} d5 {[%emt 0:00:05]} 4. cxd5 {[%emt 0:00:16]} exd5 {[%emt 0:00:02]} 5. Bg5 {[%emt 0:00:24][%cal Bc1g5,Bg5h4,Bh4g3][%mdl 32]} c6 {[%emt 0:00:08]} 6. e3 {[%emt 0:00:31]} h6 {[%emt 0:00:06]} 7. Bh4 {[%emt 0:00:20]} Be7 {[%emt 0:00:05]} 8. Bd3 {[%emt 0:00:51]} O-O {[%emt 0:00:06]} 9. Qc2 {[%emt 0:00:28]} Ne8 {[%emt 0:00:05][%cal Bf6e8,Be8d6,Bd6c4][%mdl 32] D36: Queen's Gambit Declined: Exchange Variation: Main line (5 Bg5 c6 6 Qc2).} 10. Bg3 {[%emt 0:01:49]} Nd6 $1 {[%emt 0:00:06][%mdl 4] is now more promising than 10...Bd6.} 11. Nge2 {[%emt 0:01:34] [#]} a5 $146 {[%emt 0:00:06] White has an edge.} ({Predecessor:} 11... Re8 12. O-O Bf8 13. Bf4 Be6 14. f3 Nd7 15. Rad1 b5 16. e4 Rc8 17. e5 Nc4 {½-½ (70) Grischuk,A (2764)-Carlsen,M (2856) Warsaw 2021}) 12. O-O {[%emt 0:01:16]} Na6 {[%emt 0:00:04]} 13. a3 {[%emt 0:00:08] Prevents Nb4.} Re8 {[%emt 0:00:04]} 14. f3 {[%emt 0:06:53]} Nc4 {[%emt 0:00:06]} 15. Bf2 {[%emt 0:07:08]} b5 {[%emt 0:00:04]} 16. e4 {[%emt 0:05:30]} Rb8 {[%emt 0:00:05]} 17. exd5 {[%emt 0:07:40]} cxd5 {[%emt 0:00:07]} 18. Nf4 {[%emt 0:00:10]} Nc7 {[%emt 0:22:08]} 19. Rfe1 {[%emt 0:01:46]} Bb7 {[%emt 0:00:46]} 20. Kh1 {[%emt 0:09:17]} (20. a4 $5 {[%cal Ra4b5]}) 20... Bd6 {[%emt 0:02:33]} 21. Rxe8+ {[%emt 0:03:18]} Qxe8 {[%emt 0:00:15]} 22. Nh5 {[%emt 0:07:25]} Bc6 {[%emt 0:10:56]} 23. Re1 {[%emt 0:06:10]} Qd8 {[%emt 0:03:03]} 24. Ne2 {[%emt 0:02:41]} Qg5 {[%emt 0:05:26]} 25. h4 {[%emt 0:08:05]} Qd2 {[%emt 0:01:52]} (25... Qxh5 $2 26. g4 $18) 26. Bh7+ {[%emt 0:28:52]} (26. Qxd2 $11 Nxd2 27. Bg3 Bxg3 28. Nhxg3) 26... Kf8 {[%emt 0:05:38] aiming for ...Qxc2.} 27. Qxd2 {[%emt 0:00:00]} Nxd2 {[%emt 0:00:03]} 28. Rc1 {[%emt 0:00:00]} (28. Nhg3 $15) 28... Nc4 $17 {[%emt 0:01:15] White must now prevent ...g6.} 29. Bb1 {[%emt 0:00:00]} (29. Nhf4 $17) 29... Bd7 {[%emt 0:03:59]} 30. Bg3 {[%emt 0:00:00]} Bxg3 {[%emt 0:00:03]} 31. Nhxg3 {[%emt 0:00:00]} Rb7 {[%emt 0:02:43]} 32. Bf5 {[%emt 0:00:41]} Bxf5 {[%emt 0:07:55]} 33. Nxf5 {[%emt 0:00:01] [#]} g6 $1 {[%emt 0:00:06]} 34. Nxh6 {[%emt 0:00:05]} Nxb2 {[%emt 0:00:04]} 35. Ng4 {[%emt 0:01:17]} (35. Rc6 $17) 35... Nc4 $19 {[%emt 0:00:01]} 36. Ra1 {[%emt 0:01:56]} (36. Rc3 {was called for.}) 36... b4 {[%emt 0:00:27]} 37. axb4 {[%emt 0:00:48]} axb4 {[%emt 0:00:01] Hoping for ...b3.} 38. Ne5 {[%emt 0:00:30]} Nb5 {[%emt 0:01:41]} (38... b3 $142 39. Rb1 b2) 39. Rb1 {[%emt 0:00:41] [#]} Nba3 $1 {[%emt 0:03:19]} 40. Rb3 {[%emt 0:00:00]} Na5 {[%emt 0:00:00]} 41. Rb2 {[%emt 0:00:08]} b3 {[%emt 0:01:34]} 42. Nc3 {[%emt 0:03:18]} N5c4 {[%emt 0:00:45]} 43. Re2 {[%emt 0:00:57]} (43. Nd7+ {was forced.} Rxd7 44. Rxb3) 43... Nxe5 {[%emt 0:01:13] Weighted Error Value: White=0.27 (precise) /Black=0.06 (flawless)} 0-1

[Event "55th Iranian-ch Men Final 2022"]
[Site "Iran"]
[Date "2022.06.19"]
[Round "6.6"]
[White "Poormosavi, Seyed Kian"]
[Black "Rastbod, Ali"]
[Result "0-1"]
[ECO "B01"]
[WhiteElo "2358"]
[BlackElo "2362"]
[Annotator "TA"]
[PlyCount "68"]
[EventDate "2022.06.15"]
[EventType "tourn"]
[EventCountry "IRI"]
[SourceTitle "playchess.com"]
[Source "ChessBase"]
[SourceQuality "1"]
[TimeControl "40/5400+30:1800+30"]

{[%evp 9,68,41,43,42,54,51,54,60,81,58,54,55,64,23,16,0,4,-10,-22,-45,-60,-46,-54,-59,-49,-54,-43,-43,-25,-40,-42,-43,-39,-39,-25,-36,-28,-54,-14,-69,-77,-219,-197,-168,-145,-549,-345,-330,-139,-149,-154,-398,-392,-362,-331,-354,-242,-325,-314,-1454,-1305]} 1. e4 {[%emt 0:00:03]} d5 {[%emt 0:04:41]} 2. exd5 {[%emt 0:00:39]} Qxd5 {[%emt 0:00:01]} 3. Nc3 {[%emt 0:00:33]} Qd6 {[%emt 0:00:01]} 4. g3 {[%emt 0:09:51]} g6 {[%emt 0:09:13]} 5. Bg2 {[%emt 0:02:50]} Bg7 {[%emt 0:00:02]} 6. Nge2 {[%emt 0:00:26] B01: Scandinavian Defence.} Nc6 {[%emt 0:02:33]} 7. O-O {[%emt 0:02:20][%cal Od2d4] [#]} Nh6 $146 {[%emt 0:05:25]} ({Predecessor:} 7... a6 8. d3 Nf6 9. Ne4 Nxe4 10. dxe4 O-O 11. Qxd6 cxd6 12. Nf4 Rb8 13. c3 b5 {0-1 (32) Schoorl,R (2337)-Milchev,N (2422) Copenhagen 2014}) 8. d4 {[%emt 0:03:40][%cal Bd2d4,Bd4d5][%mdl 32] White is slightly better.} Nf5 {[%emt 0:00:08][%cal Rf5d4]} 9. Ne4 {[%emt 0:13:30]} Qd8 {[%emt 0:04:09][%cal Rc6d4]} 10. c3 {[%emt 0:01:44]} O-O {[%emt 0:02:04]} 11. Nc5 {[%emt 0:05:19]} e5 {[%emt 0:06:11][%cal Re5d4]} 12. d5 {[%emt 0:19:49]} Nce7 {[%emt 0:00:16]} 13. Qb3 {[%emt 0:01:17]} Nd6 {[%emt 0:02:09]} 14. f4 {[%emt 0:03:53]} b6 {[%emt 0:09:22]} (14... Bg4 15. fxe5 Bxe5 16. Re1 $14) 15. fxe5 {[%emt 0:06:07]} bxc5 {[%emt 0:00:46]} 16. exd6 {[%emt 0:00:02]} cxd6 {[%emt 0:00:18]} 17. Bf4 {[%emt 0:00:53]} h6 {[%emt 0:02:07]} 18. Rae1 {[%emt 0:02:33]} g5 {[%emt 0:00:30]} 19. Bc1 {[%emt 0:00:19]} Ng6 {[%emt 0:00:32]} 20. Qc2 {[%emt 0:06:43]} f5 {[%emt 0:04:06]} 21. c4 {[%emt 0:01:55]} Ne5 {[%emt 0:03:17]} 22. b3 {[%emt 0:01:14]} Bd7 {[%emt 0:12:20]} 23. Bd2 {[%emt 0:00:32]} Qe8 {[%emt 0:05:49]} 24. Nc1 {[%emt 0:10:32]} (24. Nf4 $1 $11) 24... Qh5 $15 {[%emt 0:04:34] [#] Strongly threatening ...Ng4.} 25. h3 {[%emt 0:02:27] Prevents Ng4.} (25. Qd1 $17 Qxd1 26. Rxd1) 25... f4 $1 $19 {[%emt 0:08:29]} 26. gxf4 {[%emt 0:03:06]} Bxh3 $40 {[%emt 0:00:08][%mdl 128] Black attacks with force.} 27. Bc3 $2 {[%emt 0:00:41][%mdl 8192]} (27. Bxh3 $17 {nothing else works.} Qxh3 28. Qc3 (28. fxe5 $2 Bxe5 29. Be3 Rxf1+ 30. Rxf1 Qxe3+ 31. Qf2 Qxf2+ 32. Kxf2 Rf8+ 33. Kg2 Rxf1 $19) 28... Qg4+ 29. Kh2) 27... Bxg2 {[%emt 0:03:50]} 28. Qxg2 {[%emt 0:00:18]} gxf4 {[%emt 0:00:13]} ({Weaker is} 28... Rxf4 29. Rxf4 gxf4 30. Bxe5 dxe5 31. Qh1 (31. Nd3 $2 f3 $19) 31... Qg6+ 32. Qg2 $17) (28... Ng6 $19 {has better winning chances.} 29. Qe2 (29. Bxg7 $2 Nxf4 30. Qb2 Nh3+ 31. Kg2 Rxf1 $19) 29... Qh4 30. Qe6+ Kh8 31. Bxg7+ Kxg7) 29. Bxe5 $17 {[%emt 0:01:00]} dxe5 {[%emt 0:00:02] Dancing on a razor blade.} 30. Qh2 $2 {[%emt 0:00:16] [#] Loses the game.} ({Don't go for} 30. Nd3 $2 Rf5 31. Kf2 Qh4+ 32. Ke2 f3+ 33. Rxf3 Qe4+ 34. Kd1 Qxf3+ $19) (30. Qh1 $17 {was called for.} Qg5+ 31. Qg2) 30... Qf5 $1 $19 {[%emt 0:01:12]} 31. Ne2 {[%emt 0:00:43]} Rae8 {[%emt 0:00:36]} 32. Rf3 {[%emt 0:00:33]} Rf6 {[%emt 0:01:58] And now ...Qg4+ would win.} 33. Kh1 {[%emt 0:00:40]} Qg4 {[%emt 0:01:26]} 34. Qg2 {[%emt 0:01:02]} (34. Ref1 Rf5 35. Ng1) 34... Qh4+ {[%emt 0:00:02] Weighted Error Value: White=0.78/Black=0.23 (precise)} 0-1